fUST/lending_fUST_20240425
["ID","MTS","AMOUNT","RATE_DAILY","PERIOD"]
[323470397,1714029070827,-500.0,0.0001863,2]
[323470398,1714029070837,-811.0,0.0001863,2]
[323470399,1714029070846,-1302.25,0.0001863,2]
[323470400,1714029070857,-823.0,0.00018824,2]
[323470401,1714029070867,-150.0,0.0001889,2]
[323470402,1714029070877,-500.0,0.00018904,2]
[323470403,1714029070886,-500.0,0.00018904,2]
[323470404,1714029070896,-500.0,0.00018904,2]
[323470405,1714029070906,-818.02,0.00018904,2]
[323470406,1714029070918,-287.58653563,0.00018904,2]
[323470407,1714029070928,-619.95,0.00018904,2]
[323470408,1714029070939,-568.07,0.00018904,2]
[323470409,1714029070949,-500.0,0.00018904,2]
[323470410,1714029070959,-793.19,0.00018904,2]
[323470411,1714029070970,-500.0,0.00018904,2]
[323470412,1714029070980,-616.43,0.00018904,2]
[323470413,1714029070990,-424.61475389,0.00018904,2]
[323470414,1714029071001,-583.35,0.00018904,2]
[323470415,1714029071015,-500.0,0.00018904,2]
[323470416,1714029071025,-500.0,0.00018904,2]
[323470417,1714029071035,-500.0,0.00018904,2]
[323470418,1714029071046,-500.0,0.00018904,2]
[323470419,1714029071056,-500.0,0.00018904,2]
[323470420,1714029071065,-500.0,0.00018904,2]
[323470421,1714029071075,-500.0,0.00018904,2]
[323470422,1714029071088,-500.0,0.00018904,2]
[323470423,1714029071099,-374.61758662,0.00018904,2]
[323470424,1714029071109,-669.58,0.00018904,2]
[323470425,1714029071119,-500.0,0.00018904,2]
[323470426,1714029071129,-500.0,0.00018904,2]
[323470427,1714029071139,-485.11179963,0.00018904,2]
[323470428,1714029071149,-709.97,0.00018904,2]
[323470429,1714029071159,-543.87423176,0.00018904,2]
[323470430,1714029071170,-500.0,0.00018904,2]
[323470431,1714029071179,-1057.71,0.00018904,2]
[323470432,1714029071189,-500.56,0.00018904,2]
[323470433,1714029071199,-633.35,0.00018904,2]
[323470434,1714029071208,-500.0,0.00018904,2]
[323470435,1714029071218,-816.77,0.00018904,2]
[323470436,1714029071228,-1060.08,0.00018904,2]
[323470437,1714029071238,-500.0,0.00018904,2]
[323470438,1714029071248,-890.42,0.00018904,2]
[323470439,1714029071257,-929.12,0.00018904,2]
[323470440,1714029071268,-500.0,0.00018904,2]
[323470441,1714029071278,-630.9,0.00018904,2]
[323470442,1714029071288,-739.88,0.00018904,2]
[323470443,1714029071298,-500.0,0.00018904,2]
[323470444,1714029071308,-500.0,0.00018904,2]
[323470445,1714029071318,-500.0,0.00018904,2]
[323470446,1714029071328,-592.11,0.00018904,2]
[323470447,1714029071338,-822.31,0.00018904,2]
[323470448,1714029071349,-392.49119052,0.00018904,2]
[323470449,1714029071359,-500.0,0.00018904,2]
[323470450,1714029071368,-739.2,0.00018904,2]
[323470451,1714029071377,-605.37,0.00018904,2]
[323470452,1714029071388,-500.0,0.00018904,2]
[323470453,1714029071398,-558.24,0.00018904,2]
[323470454,1714029071408,-546.26,0.00018904,2]
[323470455,1714029071418,-1237.28,0.00018904,2]
[323470456,1714029071428,-500.0,0.00018904,2]
[323470457,1714029071438,-500.0,0.00018904,2]
[323470458,1714029071449,-500.0,0.00018904,2]
[323470459,1714029071459,-1489.98,0.00018904,2]
[323470460,1714029071470,-500.0,0.00018904,2]
[323470461,1714029071480,-958.76,0.00018904,2]
[323470462,1714029071491,-500.0,0.00018904,2]
[323470463,1714029071502,-1050.99,0.00018904,2]
[323470464,1714029071512,-500.0,0.00018904,2]
[323470465,1714029071522,-500.0,0.00018904,2]
[323470466,1714029071532,-685.4,0.00018904,2]
[323470467,1714029071542,-500.0,0.00018904,2]
[323470468,1714029071552,-541.01,0.00018904,2]
[323470469,1714029071562,-500.0,0.00018904,2]
[323470470,1714029071572,-946.6,0.00018904,2]
[323470471,1714029071582,-1067.85,0.00018904,2]
[323470472,1714029071592,-1592.53,0.00018904,2]
[323470473,1714029071602,-1450.14,0.00018904,2]
[323470474,1714029071612,-500.0,0.00018904,2]
[323470475,1714029071622,-500.0,0.00018904,2]
[323470476,1714029071632,-835.63,0.00018904,2]
[323470477,1714029071644,-500.0,0.00018904,2]
[323470478,1714029071654,-770.33,0.00018904,2]
[323470479,1714029071664,-500.0,0.00018904,2]
[323470480,1714029071676,-769.52,0.00018904,2]
[323470481,1714029071686,-1283.68,0.00018904,2]
[323470482,1714029071697,-536.62,0.00018904,2]
[323470483,1714029071707,-500.0,0.00018904,2]
[323470484,1714029071718,-500.0,0.00018904,2]
[323470485,1714029071728,-575.83,0.00018904,2]
[323470486,1714029071737,-3973.6,0.00018904,2]
[323470487,1714029071746,-500.0,0.00018904,2]
[323470488,1714029071755,-2242.97,0.00018904,2]
[323470489,1714029071764,-3243.05,0.00018904,2]
[323470490,1714029071773,-500.0,0.00018904,2]
[323470491,1714029071782,-508.57,0.00018904,2]
[323470492,1714029071791,-631.78,0.00018904,2]
[323470493,1714029071800,-500.0,0.00018904,2]
[323470494,1714029071809,-1375.26,0.00018904,2]
[323470495,1714029071818,-500.0,0.00018904,2]
[323470496,1714029071827,-1387.72,0.00018904,2]
[323470497,1714029071836,-500.0,0.00018904,2]
[323470498,1714029071845,-500.0,0.00018904,2]
[323470499,1714029071855,-1846.12,0.00018904,2]
[323470500,1714029071864,-500.0,0.00018904,2]
[323470501,1714029071872,-800.02,0.00018904,2]
[323470502,1714029071881,-500.0,0.00018904,2]
[323470503,1714029071891,-500.0,0.00018904,2]
[323470504,1714029071900,-646.8,0.00018904,2]
[323470505,1714029071910,-2358.88,0.00018904,2]
[323470506,1714029071919,-1011.49,0.00018904,2]
[323470507,1714029071928,-500.0,0.00018904,2]
[323470508,1714029071937,-2667.62,0.00018904,2]
[323470509,1714029071946,-500.0,0.00018904,2]
[323470510,1714029071956,-500.0,0.00018904,2]
[323470511,1714029071965,-1174.54,0.00018904,2]
[323470512,1714029071974,-592.52,0.00018904,2]
[323470513,1714029071983,-723.31,0.00018904,2]
[323470514,1714029071993,-615.81665537,0.00018904,2]
[323470515,1714029072002,-500.0,0.00018904,2]
[323470516,1714029072016,-557.02,0.00018904,2]
[323470517,1714029072025,-696.57,0.00018904,2]
[323470518,1714029072034,-646.03,0.00018904,2]
[323470519,1714029072043,-1084.85,0.00018904,2]
[323470520,1714029072053,-584.17,0.00018904,2]
[323470521,1714029072062,-500.0,0.00018904,2]
[323470522,1714029072071,-762.04,0.00018904,2]
[323470523,1714029072081,-509.24,0.00018904,2]
[323470524,1714029072091,-500.0,0.00018904,2]
[323470525,1714029072101,-1828.52,0.00018904,2]
[323470526,1714029072110,-525.09,0.00018904,2]
[323470527,1714029072119,-9714.64,0.00018904,2]
[323470528,1714029072129,-500.0,0.00018904,2]
[323470529,1714029072244,-1951.68,0.00018904,2]
[323470530,1714029072254,-1197.24,0.00018904,2]
[323470531,1714029072263,-639.36,0.00018904,2]
[323470532,1714029072272,-500.0,0.00018904,2]
[323470533,1714029072282,-500.0,0.00018904,2]
[323470534,1714029072291,-1048.02,0.00018904,2]
[323470535,1714029072301,-2000.98,0.00018904,2]
[323470536,1714029072310,-594.44,0.00018904,2]
[323470537,1714029072319,-1048.7,0.00018904,2]
[323470538,1714029072329,-500.0,0.00018904,2]
[323470539,1714029072339,-1181.52,0.00018904,2]
[323470540,1714029072348,-500.0,0.00018904,2]
[323470541,1714029072358,-1309.77,0.00018904,2]
[323470542,1714029072367,-500.0,0.00018904,2]
[323470543,1714029072377,-678.72,0.00018904,2]
[323470544,1714029072386,-500.0,0.00018904,2]
[323470545,1714029072395,-811.0,0.00018904,2]
[323470546,1714029072405,-1302.25,0.00018904,2]
[323470547,1714029072414,-189.22522209,0.0001897,2]
[323470548,1714029072423,-623.52431713,0.00019,2]
[323470549,1714029072432,-154.92201399,0.00019,2]
[323470550,1714029072442,-154.90705577,0.00019,2]
[323470551,1714029072451,-174.14108083,0.00019,2]
[323470552,1714029072460,-181.66207279,0.00019,2]
[323470553,1714029072470,-823.0,0.00019073,2]
[323470554,1714029072478,-183.86799515,0.000191,2]
[323470555,1714029072488,-500.0,0.00019178,2]
[323470556,1714029072496,-500.0,0.00019178,2]
[323470557,1714029072505,-500.0,0.00019178,2]
[323470558,1714029072514,-500.0,0.00019178,2]
[323470559,1714029072523,-500.0,0.00019178,2]
[323470560,1714029072533,-500.0,0.00019178,2]
[323470561,1714029072542,-500.0,0.00019178,2]
[323470562,1714029072551,-500.0,0.00019178,2]
[323470563,1714029072560,-500.0,0.00019178,2]
[323470564,1714029072569,-500.0,0.00019178,2]
[323470565,1714029072578,-500.0,0.00019178,2]
[323470566,1714029072588,-500.0,0.00019178,2]
[323470567,1714029072597,-500.0,0.00019178,2]
[323470568,1714029072606,-500.0,0.00019178,2]
[323470569,1714029072615,-500.0,0.00019178,2]
[323470570,1714029072625,-500.0,0.00019178,2]
[323470571,1714029072634,-500.0,0.00019178,2]
[323470572,1714029072643,-500.0,0.00019178,2]
[323470573,1714029072652,-583.12416973,0.00019178,2]
[323470574,1714029072661,-500.0,0.00019178,2]
[323470575,1714029072670,-500.0,0.00019178,2]
[323470576,1714029072679,-500.0,0.00019178,2]
[323470577,1714029072688,-500.0,0.00019178,2]
[323470578,1714029072697,-500.0,0.00019178,2]
[323470579,1714029072706,-500.0,0.00019178,2]
[323470580,1714029072715,-500.0,0.00019178,2]
[323470581,1714029072724,-500.0,0.00019178,2]
[323470582,1714029072733,-500.0,0.00019178,2]
[323470583,1714029072742,-500.0,0.00019178,2]
[323470584,1714029072751,-500.0,0.00019178,2]
[323470585,1714029072761,-500.0,0.00019178,2]
[323470586,1714029072770,-222.46610228,0.00019178,2]
[323470587,1714029072779,-500.0,0.00019178,2]
[323470588,1714029072788,-500.0,0.00019178,2]
[323470589,1714029072797,-500.0,0.00019178,2]
[323470590,1714029072806,-500.0,0.00019178,2]
[323470591,1714029072815,-500.0,0.00019178,2]
[323470592,1714029072824,-500.0,0.00019178,2]
[323470593,1714029072834,-500.0,0.00019178,2]
[323470594,1714029072843,-500.0,0.00019178,2]
[323470595,1714029072852,-586.8064727,0.00019178,2]
[323470596,1714029072865,-500.0,0.00019178,2]
[323470597,1714029072875,-500.0,0.00019178,2]
[323470598,1714029072884,-346.03029936,0.00019178,2]
[323470599,1714029072893,-633.23534492,0.00019178,2]
[323470600,1714029072902,-292.14225133,0.00019178,2]
[323470601,1714029072911,-500.0,0.00019178,2]
[323470602,1714029072920,-818.02,0.00019178,2]
[323470603,1714029072930,-619.95,0.00019178,2]
[323470604,1714029072939,-568.07,0.00019178,2]
[323470605,1714029072949,-500.0,0.00019178,2]
[323470606,1714029072958,-793.19,0.00019178,2]
[323470607,1714029072967,-500.0,0.00019178,2]
[323470608,1714029072976,-616.43,0.00019178,2]
[323470609,1714029072985,-583.35,0.00019178,2]
[323470610,1714029072995,-630.01449834,0.00019178,2]
[323470611,1714029073005,-500.0,0.00019178,2]
[323470612,1714029073017,-500.0,0.00019178,2]
[323470613,1714029073026,-500.0,0.00019178,2]
[323470614,1714029073036,-500.0,0.00019178,2]
[323470615,1714029073046,-500.0,0.00019178,2]
[323470616,1714029073055,-500.0,0.00019178,2]
[323470617,1714029073065,-500.0,0.00019178,2]
[323470618,1714029073074,-669.58,0.00019178,2]
[323470619,1714029073084,-500.0,0.00019178,2]
[323470620,1714029073094,-483.48404181,0.00019178,2]
[323470621,1714029073106,-709.97,0.00019178,2]
[323470622,1714029073116,-500.0,0.00019178,2]
[323470623,1714029073126,-1057.71,0.00019178,2]
[323470624,1714029073136,-500.56,0.00019178,2]
[323470625,1714029073145,-633.35,0.00019178,2]
[323470626,1714029073155,-500.0,0.00019178,2]
[323470627,1714029073165,-816.77,0.00019178,2]
[323470628,1714029073174,-1060.08,0.00019178,2]
[323470629,1714029073184,-500.0,0.00019178,2]
[323470630,1714029073193,-890.42,0.00019178,2]
[323470631,1714029073202,-929.12,0.00019178,2]
[323470632,1714029073211,-192.72905804,0.00019178,2]
[323470633,1714029073221,-630.9,0.00019178,2]
[323470634,1714029073231,-739.88,0.00019178,2]
[323470635,1714029073240,-500.0,0.00019178,2]
[323470636,1714029073250,-500.0,0.00019178,2]
[323470637,1714029073259,-500.0,0.00019178,2]
[323470638,1714029073269,-592.11,0.00019178,2]
[323470639,1714029073278,-822.31,0.00019178,2]
[323470640,1714029073287,-500.0,0.00019178,2]
[323470641,1714029073296,-739.2,0.00019178,2]
[323470642,1714029073306,-605.37,0.00019178,2]
[323470643,1714029073315,-511.22134853,0.00019178,2]
[323470644,1714029073324,-558.24,0.00019178,2]
[323470645,1714029073334,-546.26,0.00019178,2]
[323470646,1714029073343,-1237.28,0.00019178,2]
[323470647,1714029073352,-500.0,0.00019178,2]
[323470648,1714029073363,-461.79713295,0.00019178,2]
[323470649,1714029073373,-500.0,0.00019178,2]
[323470650,1714029073384,-1489.98,0.00019178,2]
[323470651,1714029073393,-500.0,0.00019178,2]
[323470652,1714029073403,-958.76,0.00019178,2]
[323470653,1714029073412,-500.0,0.00019178,2]
[323470654,1714029073420,-1050.99,0.00019178,2]
[323470655,1714029073430,-500.0,0.00019178,2]
[323470656,1714029073439,-500.0,0.00019178,2]
[323470657,1714029073448,-685.4,0.00019178,2]
[323470658,1714029073457,-500.0,0.00019178,2]
[323470659,1714029073466,-541.01,0.00019178,2]
[323470660,1714029073476,-500.0,0.00019178,2]
[323470661,1714029073485,-946.6,0.00019178,2]
[323470662,1714029073494,-1067.85,0.00019178,2]
[323470663,1714029073504,-1592.53,0.00019178,2]
[323470664,1714029073513,-1450.14,0.00019178,2]
[323470665,1714029073522,-500.0,0.00019178,2]
[323470666,1714029073531,-500.0,0.00019178,2]
[323470667,1714029073541,-835.63,0.00019178,2]
[323470668,1714029073550,-353.18577114,0.00019178,2]
[323470669,1714029073559,-770.33,0.00019178,2]
[323470670,1714029073568,-500.0,0.00019178,2]
[323470671,1714029073577,-2942.75,0.00019178,2]
[323470672,1714029073587,-2942.75,0.00019178,2]
[323470673,1714029073596,-2942.75,0.00019178,2]
[323470674,1714029073607,-2942.75,0.00019178,2]
[323470675,1714029073616,-2942.75,0.00019178,2]
[323470676,1714029073625,-2942.75,0.00019178,2]
[323470677,1714029073635,-2942.75,0.00019178,2]
[323470678,1714029073644,-2942.75,0.00019178,2]
[323470679,1714029073654,-2942.75,0.00019178,2]
[323470680,1714029073663,-2942.75,0.00019178,2]
[323470681,1714029073672,-2942.75,0.00019178,2]
[323470682,1714029073681,-769.52,0.00019178,2]
[323470683,1714029073691,-1283.68,0.00019178,2]
[323470684,1714029073700,-536.62,0.00019178,2]
[323470685,1714029073709,-500.0,0.00019178,2]
[323470686,1714029073718,-575.83,0.00019178,2]
[323470687,1714029073727,-3973.6,0.00019178,2]
[323470688,1714029073736,-500.0,0.00019178,2]
[323470689,1714029073745,-2242.97,0.00019178,2]
[323470690,1714029073754,-3243.05,0.00019178,2]
[323470691,1714029073764,-500.0,0.00019178,2]
[323470692,1714029073773,-508.57,0.00019178,2]
[323470693,1714029073782,-631.78,0.00019178,2]
[323470694,1714029073791,-500.0,0.00019178,2]
[323470695,1714029073800,-1375.26,0.00019178,2]
[323470696,1714029073809,-500.0,0.00019178,2]
[323470697,1714029073819,-1387.72,0.00019178,2]
[323470698,1714029073828,-647.49208227,0.00019178,2]
[323470699,1714029073837,-500.0,0.00019178,2]
[323470700,1714029073846,-1846.12,0.00019178,2]
[323470701,1714029073856,-500.0,0.00019178,2]
[323470702,1714029073864,-800.02,0.00019178,2]
[323470703,1714029073874,-642.98470145,0.00019178,2]
[323470704,1714029073883,-500.0,0.00019178,2]
[323470705,1714029073892,-646.8,0.00019178,2]
[323470706,1714029073901,-2358.88,0.00019178,2]
[323470707,1714029073910,-1011.49,0.00019178,2]
[323470708,1714029073920,-500.0,0.00019178,2]
[323470709,1714029073929,-2667.62,0.00019178,2]
[323470710,1714029073938,-500.0,0.00019178,2]
[323470711,1714029073947,-500.0,0.00019178,2]
[323470712,1714029073958,-1174.54,0.00019178,2]
[323470713,1714029073968,-723.31,0.00019178,2]
[323470714,1714029073977,-592.52,0.00019178,2]
[323470715,1714029073986,-500.0,0.00019178,2]
[323470716,1714029073995,-557.02,0.00019178,2]
[323470717,1714029074006,-696.57,0.00019178,2]
[323470718,1714029074019,-646.03,0.00019178,2]
[323470719,1714029074028,-1084.85,0.00019178,2]
[323470720,1714029074037,-584.17,0.00019178,2]
[323470721,1714029074046,-500.0,0.00019178,2]
[323470722,1714029074055,-762.04,0.00019178,2]
[323470723,1714029074064,-509.24,0.00019178,2]
[323470724,1714029074074,-500.0,0.00019178,2]
[323470725,1714029074083,-1828.52,0.00019178,2]
[323470726,1714029074093,-525.09,0.00019178,2]
[323470727,1714029074105,-9714.64,0.00019178,2]
[323470728,1714029074114,-500.0,0.00019178,2]
[323470729,1714029074123,-1951.68,0.00019178,2]
[323470730,1714029074132,-1197.24,0.00019178,2]
[323470731,1714029074141,-639.36,0.00019178,2]
[323470732,1714029074153,-500.0,0.00019178,2]
[323470733,1714029074162,-500.0,0.00019178,2]
[323470734,1714029074171,-1048.02,0.00019178,2]
[323470735,1714029074181,-2000.98,0.00019178,2]
[323470736,1714029074191,-594.44,0.00019178,2]
[323470737,1714029074200,-1048.7,0.00019178,2]
[323470738,1714029074209,-500.0,0.00019178,2]
[323470739,1714029074219,-1181.52,0.00019178,2]
[323470740,1714029074228,-354.25899785,0.00019178,2]
[323470741,1714029074238,-1309.77,0.00019178,2]
[323470742,1714029074247,-500.0,0.00019178,2]
[323470743,1714029074360,-500.0,0.00019178,2]
[323470744,1714029074369,-421.10729121,0.00019178,2]
[323470745,1714029074378,-267.09076304,0.00019178,2]
[323470746,1714029074387,-500.0,0.00019178,2]
[323470747,1714029074397,-500.0,0.00019178,2]
[323470748,1714029074406,-500.0,0.00019178,2]
[323470749,1714029074414,-500.0,0.00019178,2]
[323470750,1714029074423,-500.0,0.00019178,2]
[323470751,1714029074434,-500.0,0.00019178,2]
[323470752,1714029074446,-500.0,0.00019178,2]
[323470753,1714029074456,-500.0,0.00019178,2]
[323470754,1714029074464,-500.0,0.00019178,2]
[323470755,1714029074474,-500.0,0.00019178,2]
[323470756,1714029074483,-500.0,0.00019178,2]
[323470757,1714029074492,-500.0,0.00019178,2]
[323470758,1714029074501,-500.0,0.00019178,2]
[323470759,1714029074511,-500.0,0.00019178,2]
[323470760,1714029074521,-500.0,0.00019178,2]
[323470761,1714029074530,-540.07393439,0.00019178,2]
[323470762,1714029074540,-500.0,0.00019178,2]
[323470763,1714029074549,-284.7673806,0.00019178,2]
[323470764,1714029074559,-450.0,0.00019178,2]
[323470765,1714029074568,-500.0,0.00019178,2]
[323470766,1714029074585,-500.0,0.00019178,2]
[323470767,1714029074599,-500.0,0.00019178,2]
[323470768,1714029074610,-500.0,0.00019178,2]
[323470769,1714029074620,-500.0,0.00019178,2]
[323470770,1714029074631,-500.0,0.00019178,2]
[323470771,1714029074641,-500.0,0.00019178,2]
[323470772,1714029074651,-500.0,0.00019178,2]
[323470773,1714029074662,-500.0,0.00019178,2]
[323470774,1714029074671,-500.0,0.00019178,2]
[323470775,1714029074681,-500.0,0.00019178,2]
[323470776,1714029074692,-500.0,0.00019178,2]
[323470777,1714029074702,-678.72,0.00019178,2]
[323470778,1714029074712,-500.0,0.00019178,2]
[323470779,1714029074723,-454.17972007,0.00019178,2]
[323470780,1714029074733,-226.37051448,0.00019178,2]
[323470781,1714029074743,-183.22301454,0.00019178,2]
[323470782,1714029074754,-811.0,0.00019178,2]
[323470783,1714029074764,-1302.25,0.00019178,2]
[323470784,1714029074775,-159.098836,0.00019178,2]
[323470785,1714029074784,-160.549889,0.00019178,2]
[323470786,1714029074794,-170.7019695,0.00019178,2]
[323470787,1714029074804,-170.7947443,0.00019178,2]
[323470788,1714029074813,-1442.492764,0.00019178,2]
[323470789,1714029074824,-1442.492764,0.00019178,2]
[323470790,1714029074833,-1442.492764,0.00019178,2]
[323470791,1714029074844,-1442.492764,0.00019178,2]
[323470792,1714029074854,-1442.492764,0.00019178,2]
[323470793,1714029074864,-1442.492764,0.00019178,2]
[323470794,1714029074874,-1442.492764,0.00019178,2]
[323470795,1714029074884,-1442.492764,0.00019178,2]
[323470796,1714029074894,-1442.492764,0.00019178,2]
[323470797,1714029074904,-1442.492764,0.00019178,2]
[323470798,1714029074914,-1442.492764,0.00019178,2]
[323470799,1714029074924,-1442.492764,0.00019178,2]
[323470800,1714029074934,-1442.492764,0.00019178,2]
[323470801,1714029074944,-1442.492764,0.00019178,2]
[323470802,1714029074954,-1442.492764,0.00019178,2]
[323470803,1714029074964,-1442.492764,0.00019178,2]
[323470804,1714029074973,-1442.492764,0.00019178,2]
[323470805,1714029074983,-1442.492764,0.00019178,2]
[323470806,1714029074993,-1442.492764,0.00019178,2]
[323470807,1714029075005,-1442.492758,0.00019178,2]
[323470808,1714029075015,-401.0754427,0.00019178,2]
[323470809,1714029075025,-620.0,0.0001926,2]
[323470810,1714029075035,-510.07482545,0.00019452,2]
[323470811,1714029075045,-818.02,0.00019452,2]
[323470812,1714029075055,-619.95,0.00019452,2]
[323470813,1714029075065,-568.07,0.00019452,2]
[323470814,1714029075075,-500.0,0.00019452,2]
[323470815,1714029075088,-793.19,0.00019452,2]
[323470816,1714029075097,-507.04971073,0.00019452,2]
[323470817,1714029075107,-616.43,0.00019452,2]
[323470818,1714029075117,-583.35,0.00019452,2]
[323470819,1714029075126,-500.0,0.00019452,2]
[323470820,1714029075136,-500.0,0.00019452,2]
[323470821,1714029075146,-500.0,0.00019452,2]
[323470822,1714029075155,-500.0,0.00019452,2]
[323470823,1714029075165,-500.0,0.00019452,2]
[323470824,1714029075174,-433.94246099,0.00019452,2]
[323470825,1714029075185,-500.0,0.00019452,2]
[323470826,1714029075194,-669.58,0.00019452,2]
[323470827,1714029075203,-500.0,0.00019452,2]
[323470828,1714029075213,-709.97,0.00019452,2]
[323470829,1714029075223,-500.0,0.00019452,2]
[323470830,1714029075233,-1057.71,0.00019452,2]
[323470831,1714029075242,-500.56,0.00019452,2]
[323470832,1714029075251,-633.35,0.00019452,2]
[323470833,1714029075261,-500.0,0.00019452,2]
[323470834,1714029075270,-816.77,0.00019452,2]
[323470835,1714029075280,-1060.08,0.00019452,2]
[323470836,1714029075289,-500.0,0.00019452,2]
[323470837,1714029075299,-890.42,0.00019452,2]
[323470838,1714029075308,-929.12,0.00019452,2]
[323470839,1714029075318,-630.9,0.00019452,2]
[323470840,1714029075327,-739.88,0.00019452,2]
[323470841,1714029075336,-500.0,0.00019452,2]
[323470842,1714029075345,-500.0,0.00019452,2]
[323470843,1714029075354,-500.0,0.00019452,2]
[323470844,1714029075364,-592.11,0.00019452,2]
[323470845,1714029075374,-822.31,0.00019452,2]
[323470846,1714029075383,-500.0,0.00019452,2]
[323470847,1714029075391,-739.2,0.00019452,2]
[323470848,1714029075401,-605.37,0.00019452,2]
[323470849,1714029075409,-558.24,0.00019452,2]
[323470850,1714029075419,-546.26,0.00019452,2]
[323470851,1714029075428,-1237.28,0.00019452,2]
[323470852,1714029075437,-220.15419851,0.00019452,2]
[323470853,1714029075446,-500.0,0.00019452,2]
[323470854,1714029075455,-1489.98,0.00019452,2]
[323470855,1714029075464,-500.0,0.00019452,2]
[323470856,1714029075473,-958.76,0.00019452,2]
[323470857,1714029075482,-500.0,0.00019452,2]
[323470858,1714029075491,-1050.99,0.00019452,2]
[323470859,1714029075499,-552.23559808,0.00019452,2]
[323470860,1714029075508,-500.0,0.00019452,2]
[323470861,1714029075518,-685.4,0.00019452,2]
[323470862,1714029075527,-500.0,0.00019452,2]
[323470863,1714029075537,-541.01,0.00019452,2]
[323470864,1714029075547,-500.0,0.00019452,2]
[323470865,1714029075557,-946.6,0.00019452,2]
[323470866,1714029075566,-1067.85,0.00019452,2]
[323470867,1714029075577,-1592.53,0.00019452,2]
[323470868,1714029075586,-1450.14,0.00019452,2]
[323470869,1714029075596,-500.0,0.00019452,2]
[323470870,1714029075605,-219.12666383,0.00019452,2]
[323470871,1714029075616,-835.63,0.00019452,2]
[323470872,1714029075625,-770.33,0.00019452,2]
[323470873,1714029075635,-500.0,0.00019452,2]
[323470874,1714029075644,-2942.75,0.00019452,2]
[323470875,1714029075655,-769.52,0.00019452,2]
[323470876,1714029075664,-1283.68,0.00019452,2]
[323470877,1714029075673,-536.62,0.00019452,2]
[323470878,1714029075683,-500.0,0.00019452,2]
[323470879,1714029075693,-575.83,0.00019452,2]
[323470880,1714029075702,-3973.6,0.00019452,2]
[323470881,1714029075712,-500.0,0.00019452,2]
[323470882,1714029075721,-2242.97,0.00019452,2]
[323470883,1714029075731,-3243.05,0.00019452,2]
[323470884,1714029075740,-500.0,0.00019452,2]
[323470885,1714029075750,-508.57,0.00019452,2]
[323470886,1714029075759,-631.78,0.00019452,2]
[323470887,1714029075768,-1375.26,0.00019452,2]
[323470888,1714029075778,-500.0,0.00019452,2]
[323470889,1714029075787,-500.0,0.00019452,2]
[323470890,1714029075797,-1387.72,0.00019452,2]
[323470891,1714029075806,-500.0,0.00019452,2]
[323470892,1714029075816,-1846.12,0.00019452,2]
[323470893,1714029075825,-500.0,0.00019452,2]
[323470894,1714029075835,-800.02,0.00019452,2]
[323470895,1714029075844,-395.0,0.00019452,2]
[323470896,1714029075853,-646.8,0.00019452,2]